bitfinex/quotes_BTCUSD_20250422
["timestamp","ask_amount","ask_price","bid_price","bid_amount"]
[1745287535382,0.01129101,88566.0,88551.0,1.22906883]
[1745287535906,0.0004231,88567.0,88551.0,1.22906883]
[1745287536997,0.01171398,88567.0,88551.0,1.22906883]
[1745287537222,0.0004231,88567.0,88551.0,1.22906883]
[1745287538264,0.01171398,88567.0,88551.0,1.22906883]
[1745287538819,0.0004231,88567.0,88551.0,1.22906883]
[1745287539069,0.01171398,88567.0,88551.0,1.22906883]
[1745287539410,0.2375341,88567.0,88551.0,1.22906883]
[1745287539614,0.01171398,88567.0,88551.0,1.22906883]
[1745287539857,0.01129126,88564.0,88551.0,1.22906883]
[1745287540430,0.01129126,88564.0,88551.0,1.00321029]
[1745287540630,0.01129126,88564.0,88551.0,1.22906883]
[1745287541218,0.01129139,88563.0,88551.0,1.22906883]
[1745287541421,0.01129254,88554.0,88551.0,0.4257535]
[1745287541682,0.22627899,88552.0,88551.0,0.4257535]
[1745287541930,0.22627899,88552.0,88551.0,0.0090535]
[1745287541931,0.27776602,88552.0,88551.0,0.0090535]
[1745287542133,0.39252196,88552.0,88551.0,1e-08]
[1745287542363,0.0944,88551.0,88550.0,1e-08]
[1745287542582,0.21324552,88551.0,88550.0,1e-08]
[1745287542967,0.01129637,88524.0,88521.0,0.34]
[1745287543752,0.23722434,88524.0,88521.0,0.34]
[1745287543930,0.00510336,88523.0,88521.0,0.34]
[1745287544144,0.0052066,88523.0,88521.0,0.342]
[1745287544549,0.00010324,88523.0,88521.0,0.342]
[1745287544877,0.00010324,88523.0,88520.0,0.58557549]
[1745287545070,0.00010324,88523.0,88521.0,0.002]
[1745287545454,0.00010324,88523.0,88521.0,0.004]
[1745287545822,0.00510336,88522.0,88521.0,0.002]
[1745287546178,0.00510336,88522.0,88520.0,0.58757549]
[1745287546378,0.00510336,88522.0,88520.0,0.58557549]
[1745287546596,0.00010324,88523.0,88522.0,0.56593253]
[1745287546957,0.00010324,88523.0,88522.0,0.34]
[1745287547167,0.0052066,88523.0,88522.0,0.34]
[1745287548026,0.0052066,88523.0,88522.0,0.341]
[1745287549308,0.0052066,88523.0,88522.0,0.34]
[1745287549524,0.0062066,88523.0,88522.0,0.34]
[1745287553795,0.22596061,88511.0,88497.0,0.4167]
[1745287553998,0.22596061,88511.0,88495.0,0.0008458]
[1745287553999,0.22597848,88504.0,88495.0,0.0008458]
[1745287554224,0.22599891,88496.0,88495.0,0.0008458]
[1745287554432,0.22599891,88496.0,88495.0,0.00790165]
[1745287554637,0.23084198,88496.0,88495.0,0.04361142]
[1745287555775,0.22994517,88496.0,88495.0,0.04361142]
[1745287556360,0.23194517,88496.0,88495.0,0.04361142]
[1745287557375,0.27894517,88496.0,88495.0,0.04361142]
[1745287557575,0.39270111,88496.0,88495.0,0.04361142]
[1745287558018,0.39270111,88496.0,88495.0,0.00790165]
[1745287558366,0.39270111,88496.0,88495.0,0.0008458]
[1745287559509,0.39070111,88496.0,88495.0,0.0008458]
[1745287559711,0.39370111,88496.0,88495.0,0.0008458]
[1745287559916,0.39470111,88496.0,88495.0,0.0008458]
[1745287560727,0.39170111,88496.0,88495.0,0.0008458]
[1745287561671,0.27694517,88496.0,88495.0,0.0008458]
[1745287561857,0.27794517,88496.0,88495.0,0.0008458]
[1745287562085,0.00794626,88496.0,88495.0,0.00790253]
[1745287562649,0.00310319,88496.0,88495.0,0.00790253]
[1745287562847,0.00767124,88496.0,88495.0,0.23390399]
[1745287563056,0.00467124,88496.0,88495.0,0.23390399]
[1745287563401,0.00010319,88496.0,88495.0,0.23490399]
[1745287563753,0.00010319,88496.0,88495.0,0.24473176]
[1745287563957,0.00010319,88496.0,88495.0,0.24347194]
[1745287566061,0.00599279,88496.0,88495.0,0.24347194]
[1745287568679,0.00599279,88496.0,88495.0,0.01747048]
[1745287568902,0.2319917,88496.0,88495.0,0.00890253]
[1745287569100,0.23663816,88496.0,88495.0,0.00890253]
[1745287569898,0.23663816,88496.0,88495.0,0.00790253]
[1745287570104,0.23763816,88496.0,88495.0,0.00790253]
[1745287570298,0.23863816,88496.0,88495.0,0.00790253]
[1745287572871,0.28393816,88496.0,88495.0,0.00790253]
[1745287573110,0.3976941,88496.0,88495.0,0.00790253]
[1745287573501,0.01263925,88496.0,88495.0,0.00790253]
[1745287573818,0.00799279,88496.0,88495.0,0.23390399]
[1745287574023,0.00799279,88496.0,88495.0,0.00790253]
[1745287574231,0.00299279,88496.0,88495.0,0.57390399]
[1745287574435,0.00664646,88496.0,88495.0,0.34790253]
[1745287574674,0.002,88496.0,88495.0,0.34790253]
[1745287574876,0.00664646,88496.0,88495.0,0.57390399]
[1745287575073,0.001,88496.0,88495.0,0.34790253]
[1745287575276,0.00564646,88496.0,88495.0,0.34790253]
[1745287575481,0.01129969,88498.0,88496.0,0.34]
[1745287575791,0.01129969,88498.0,88497.0,0.00705673]
[1745287576193,0.23729349,88498.0,88497.0,0.00705673]
[1745287577093,0.23829349,88498.0,88497.0,0.00705673]
[1745287577296,0.01129969,88498.0,88497.0,0.00705673]
[1745287577460,0.24318309,88498.0,88497.0,0.00705673]
[1745287578261,0.24418309,88498.0,88497.0,0.00705673]
[1745287578664,0.24318309,88498.0,88497.0,0.00705673]
[1745287578982,0.24518309,88498.0,88497.0,0.00705673]
[1745287579582,0.01918929,88498.0,88497.0,0.00705673]
[1745287580049,0.0078896,88498.0,88497.0,0.00705673]
[1745287580598,0.0078896,88498.0,88497.0,0.57305309]
[1745287581057,0.0078896,88498.0,88497.0,0.34705673]
[1745287585185,0.0068896,88498.0,88497.0,0.34705673]
[1745287585784,0.0058896,88498.0,88497.0,0.34705673]
[1745287586324,0.2318834,88498.0,88497.0,0.34705673]
[1745287586828,0.01044728,88498.0,88497.0,0.34705673]
[1745287587642,0.01044728,88498.0,88497.0,0.57305309]
[1745287588342,0.0058896,88498.0,88497.0,0.57305309]
[1745287588538,0.0058896,88498.0,88497.0,0.22599636]
[1745287590154,0.0058896,88498.0,88496.0,0.00045732]
[1745287590534,0.00455768,88497.0,88496.0,0.00045732]
[1745287590939,0.0058896,88498.0,88497.0,0.22599636]
[1745287591203,0.01044728,88498.0,88497.0,0.22599636]
[1745287591541,0.22592485,88526.0,88497.0,1.15759315]
[1745287591744,0.01129662,88522.0,88517.0,0.22594465]
[1745287592043,0.23719559,88535.0,88527.0,0.01129598]
[1745287592173,0.01129547,88531.0,88526.0,0.22592]
[1745287592656,0.0112956,88530.0,88526.0,0.22592]
[1745287592793,0.01129535,88532.0,88527.0,0.22591738]
[1745287593257,0.0004229,88534.0,88533.0,0.22590446]
[1745287593654,0.0004229,88534.0,88533.0,0.25678093]
[1745287594009,0.0004229,88534.0,88533.0,0.03087647]
[1745287594231,0.01171799,88534.0,88531.0,0.22590738]
[1745287594454,0.01129586,88528.0,88526.0,0.34]
[1745287594752,0.01129535,88532.0,88527.0,0.23721575]
[1745287594979,0.01129535,88532.0,88529.0,0.34]
[1745287595684,0.22590956,88531.0,88529.0,0.34]
[1745287596334,0.22590956,88531.0,88529.0,0.03180393]
[1745287596542,0.01129573,88529.0,88525.0,0.34]
[1745287596929,0.01129586,88528.0,88525.0,0.34]
[1745287597131,0.096,88530.0,88512.0,0.34]
[1745287597132,0.01129764,88514.0,88512.0,0.34]
[1745287597304,0.01129752,88515.0,88512.0,0.34]
[1745287597503,0.01129649,88523.0,88512.0,0.34]
[1745287597504,0.23723279,88521.0,88515.0,0.22595031]
[1745287598133,0.01129649,88523.0,88516.0,0.01129739]
[1745287598380,0.22592565,88525.0,88523.0,0.34]
[1745287598575,0.00480721,88524.0,88523.0,0.34]
[1745287598781,0.22592025,88527.0,88523.0,0.34]
[1745287598995,0.22591512,88529.0,88523.0,0.34]
[1745287599333,0.01129586,88528.0,88523.0,0.01129649]
[1745287599678,0.01129598,88527.0,88523.0,0.23722637]
[1745287599879,0.01129598,88527.0,88520.0,0.34]
[1745287599880,0.0004229,88534.0,88531.0,0.35129547]
[1745287600203,0.0004229,88534.0,88533.0,0.35454085]
[1745287600382,0.0112919,88559.0,88551.0,0.56585854]
[1745287600564,0.01129254,88554.0,88551.0,0.34]
[1745287600759,0.01129241,88555.0,88551.0,0.34705142]
[1745287601423,0.01129203,88558.0,88551.0,0.34705142]
[1745287602353,0.22583975,88559.0,88551.0,0.34705142]
[1745287602628,0.22627899,88552.0,88551.0,0.34705142]
[1745287602828,0.23106986,88552.0,88551.0,0.34705142]
[1745287603995,0.00621387,88552.0,88551.0,0.34705142]
[1745287604178,0.000423,88552.0,88551.0,0.34705142]
[1745287604610,0.000423,88552.0,88551.0,0.57290996]
[1745287604806,0.00521387,88552.0,88551.0,0.57290996]
[1745287605016,0.00621387,88552.0,88551.0,0.57290996]
[1745287605217,0.00521387,88552.0,88551.0,0.57290996]
[1745287605806,0.000423,88552.0,88551.0,0.57290996]
[1745287607090,0.001423,88552.0,88551.0,0.57290996]
[1745287607468,0.000423,88552.0,88551.0,0.57290996]
[1745287608362,0.001423,88552.0,88551.0,0.70120675]
[1745287608783,0.001423,88552.0,88551.0,0.66920675]
[1745287610205,0.000423,88552.0,88551.0,0.6546659]
[1745287610424,0.000423,88552.0,88551.0,0.54090996]
[1745287612694,0.000423,88552.0,88551.0,0.66920675]
[1745287614839,0.000423,88552.0,88551.0,0.54090996]
[1745287615656,0.000423,88552.0,88551.0,0.31505142]
[1745287615856,0.000423,88552.0,88551.0,0.54090996]
[1745287616281,0.00545534,88552.0,88551.0,0.54090996]
[1745287616514,0.000423,88552.0,88551.0,0.31505142]
[1745287617624,0.00545534,88552.0,88551.0,0.31505142]
[1745287618241,0.23131133,88552.0,88551.0,0.31505142]
[1745287619811,0.00545534,88552.0,88551.0,0.31505142]
[1745287620827,0.00645534,88552.0,88551.0,0.31505142]
[1745287622038,0.00645534,88552.0,88551.0,0.54090996]
[1745287622424,0.001423,88552.0,88551.0,0.54090996]
[1745287623442,0.001423,88552.0,88551.0,0.31505142]
[1745287623655,0.00645882,88552.0,88551.0,0.31505142]
[1745287623857,0.00545882,88552.0,88551.0,0.31505142]
[1745287624226,0.16911476,88552.0,88551.0,0.00705142]
[1745287625706,0.17011476,88552.0,88551.0,0.00705142]
[1745287626616,0.18711476,88552.0,88551.0,0.00805142]
[1745287627453,0.17011476,88552.0,88551.0,0.00705142]
[1745287627675,0.21641476,88552.0,88551.0,0.00705142]
[1745287628539,0.21641476,88552.0,88531.0,0.34]
[1745287628540,0.01129509,88534.0,88531.0,0.34]
[1745287628750,0.22590446,88533.0,88531.0,0.34]
[1745287628971,0.23095661,88533.0,88531.0,0.34]
[1745287629419,0.22995661,88533.0,88531.0,0.34]
[1745287630423,0.24795661,88533.0,88531.0,0.341]
[1745287630788,0.24795661,88533.0,88531.0,0.001]
[1745287631032,0.02305215,88533.0,88531.0,0.001]
[1745287631233,0.02305215,88533.0,88532.0,0.56590701]
[1745287631581,0.02305215,88533.0,88532.0,0.34]
[1745287631582,0.019,88533.0,88532.0,0.34]
[1745287631919,0.02392057,88533.0,88532.0,0.34]
[1745287632156,0.00592057,88533.0,88532.0,0.34]
[1745287632483,0.00492057,88533.0,88532.0,0.34705288]
[1745287632627,0.02292057,88533.0,88532.0,0.34805288]
[1745287633110,0.02392057,88533.0,88532.0,0.34805288]
[1745287633315,0.00592057,88533.0,88532.0,0.34705288]
[1745287634078,0.02292057,88533.0,88532.0,0.34805288]
[1745287635126,0.02392057,88533.0,88532.0,0.34805288]
[1745287635580,0.019,88533.0,88532.0,0.34805288]
[1745287635811,0.02392057,88533.0,88532.0,0.34805288]
[1745287637960,0.019,88533.0,88532.0,0.34805288]
[1745287639332,0.02392057,88533.0,88532.0,0.34805288]
[1745287641345,0.24982503,88533.0,88532.0,0.34805288]
[1745287641772,0.02392057,88533.0,88532.0,0.34805288]
[1745287642392,0.001423,88552.0,88549.0,0.34]
[1745287642577,0.001423,88552.0,88551.0,0.34]
[1745287643028,0.00146875,88552.0,88551.0,0.34]
[1745287643234,0.00146875,88552.0,88551.0,0.34705288]
[1745287644410,0.00246875,88552.0,88551.0,0.34705288]
[1745287644620,0.00246875,88552.0,88551.0,0.57291142]
[1745287644843,0.00246875,88552.0,88551.0,0.34705288]
[1745287645254,0.00446875,88552.0,88551.0,0.34805288]
[1745287645604,0.00446875,88552.0,88551.0,0.57391142]
[1745287645963,0.00446875,88552.0,88551.0,0.58233246]
[1745287647104,0.00446875,88552.0,88551.0,0.35647392]
[1745287648441,0.00446875,88552.0,88551.0,0.34805288]
[1745287648665,0.09746875,88552.0,88551.0,0.00805288]
[1745287648864,0.09746875,88552.0,88532.0,0.001]
[1745287648865,0.22590446,88533.0,88532.0,0.001]
[1745287650544,0.22590446,88533.0,88532.0,0.002]
[1745287650998,0.22590446,88533.0,88532.0,0.001]
[1745287651604,0.23490446,88533.0,88532.0,0.002]
[1745287654585,0.009,88533.0,88532.0,0.342]
[1745287655582,0.054,88533.0,88532.0,0.342]
[1745287655812,0.054,88533.0,88532.0,0.002]
[1745287656389,0.045,88533.0,88532.0,0.001]
[1745287656829,0.051,88533.0,88532.0,0.002]
[1745287657233,0.051,88533.0,88532.0,0.001]
[1745287657952,0.006,88533.0,88532.0,0.001]
[1745287659874,0.006,88533.0,88532.0,0.56690701]
[1745287661414,0.006,88533.0,88532.0,0.5739598]
[1745287662472,0.01129433,88540.0,88532.0,0.39515279]
[1745287662681,0.01129471,88537.0,88533.0,0.22590446]
[1745287662892,0.01129484,88536.0,88533.0,0.00705279]
[1745287663135,0.01129484,88536.0,88534.0,0.00705279]
[1745287663548,0.23719432,88535.0,88532.0,0.341]
[1745287663960,0.01129496,88535.0,88532.0,0.341]
[1745287664170,0.01129496,88535.0,88533.0,0.00705247]
[1745287664840,0.01129496,88535.0,88534.0,0.00705247]
[1745287665270,0.01429496,88535.0,88534.0,0.00705247]
[1745287665635,0.01129496,88535.0,88534.0,0.00705247]
[1745287666036,0.23819432,88535.0,88534.0,0.00705247]
[1745287666803,0.22689936,88535.0,88534.0,0.00805247]
[1745287667686,0.001,88535.0,88534.0,0.57395438]
[1745287668619,0.001,88535.0,88534.0,0.34805247]
[1745287670333,0.22689936,88535.0,88534.0,0.34805247]
[1745287670727,0.22589936,88535.0,88534.0,0.34805247]
[1745287671042,0.22589936,88535.0,88534.0,0.34705247]
[1745287671598,0.22989936,88535.0,88534.0,0.34705247]
[1745287672141,0.22589936,88535.0,88534.0,0.34705247]
[1745287673094,0.01129471,88537.0,88535.0,0.34]
[1745287673664,0.01129471,88537.0,88536.0,0.00705247]
[1745287674258,0.01429471,88537.0,88536.0,0.00705247]
[1745287674680,0.01129471,88537.0,88536.0,0.00705247]
[1745287675094,0.01429471,88537.0,88536.0,0.00705247]
[1745287675809,0.01129509,88534.0,88531.0,0.08000626]
[1745287676402,0.01129496,88535.0,88531.0,0.08000626]
[1745287676549,0.003,88537.0,88533.0,0.22590223]
[1745287676755,0.22586582,88549.0,88536.0,0.01229484]
[1745287676756,0.0112933,88548.0,88536.0,0.01229484]
[1745287676964,0.2371772,88542.0,88540.0,0.34]
[1745287677923,0.23718367,88539.0,88536.0,0.001]
[1745287678313,0.01129471,88537.0,88534.0,0.34]
[1745287678521,0.01029458,88538.0,88534.0,0.34]
[1745287679161,0.01129433,88540.0,88536.0,0.34]
[1745287679579,0.01129458,88538.0,88536.0,0.34]
[1745287679777,0.22589425,88537.0,88536.0,0.34]
[1745287680194,0.22589425,88537.0,88520.0,0.01129688]
[1745287680195,0.01129573,88529.0,88527.0,0.22019453]
[1745287680406,0.01129573,88529.0,88522.0,0.2259324]
[1745287680651,0.01129547,88531.0,88527.0,0.34]
[1745287680826,0.0112956,88530.0,88527.0,0.34]
[1745287682031,0.01129573,88529.0,88526.0,0.34]
[1745287682233,0.0112956,88530.0,88527.0,0.22591977]
[1745287682457,0.01129573,88529.0,88526.0,0.34]
[1745287682659,0.22591722,88528.0,88526.0,0.34]
[1745287683243,0.22591722,88528.0,88524.0,0.34]
[1745287683244,0.01129611,88526.0,88524.0,0.34]
[1745287684085,0.01129547,88531.0,88527.0,0.22591798]
[1745287684286,0.001,88528.0,88527.0,0.22591798]
[1745287685079,0.01129547,88531.0,88527.0,0.22591798]
[1745287685342,0.01129547,88531.0,88520.0,0.34]
[1745287685343,0.23723147,88522.0,88520.0,0.34]
[1745287686326,0.23723147,88522.0,88519.0,0.34]
[1745287686684,0.22593764,88520.0,88519.0,0.34]
[1745287687420,0.22594785,88516.0,88515.0,0.0008452]
[1745287687757,0.31974785,88516.0,88515.0,0.00789949]
[1745287689975,0.32174785,88516.0,88515.0,0.00789949]
[1745287690643,0.32374785,88516.0,88515.0,0.00789949]
[1745287691177,0.43850379,88516.0,88515.0,0.00789949]
[1745287692112,0.43650379,88516.0,88515.0,0.00789949]
[1745287692454,0.43850379,88516.0,88515.0,0.0008452]
[1745287692708,0.43650379,88516.0,88515.0,0.0008452]
[1745287692962,0.43550379,88516.0,88515.0,0.0008452]
[1745287693113,0.43450379,88516.0,88515.0,0.0008452]
[1745287693315,0.43650379,88516.0,88515.0,0.0008452]
[1745287693520,0.43750379,88516.0,88515.0,0.0008452]
[1745287694096,0.43550379,88516.0,88515.0,0.0008452]
[1745287694286,0.43450379,88516.0,88515.0,0.0008452]
[1745287694515,0.43650379,88516.0,88515.0,0.0008452]
[1745287695633,0.43950379,88516.0,88515.0,0.0008452]
[1745287698602,0.43950379,88516.0,88495.0,0.0008458]
[1745287698603,0.0112993,88501.0,88495.0,0.0008458]
[1745287698882,0.22599125,88499.0,88498.0,0.02446564]
[1745287699820,0.22599125,88499.0,88498.0,0.03152216]
[1745287700783,0.22699125,88499.0,88498.0,0.03152216]
[1745287701024,0.22699125,88499.0,88489.0,0.22019453]
[1745287701025,0.22601423,88490.0,88489.0,0.55519029]
[1745287701240,0.22601423,88490.0,88489.0,0.34]
[1745287701574,0.22601423,88490.0,88485.0,0.0008458]
[1745287701575,0.2260219,88487.0,88485.0,0.0008458]
[1745287701777,0.2260219,88487.0,88486.0,0.02541888]
[1745287702320,0.2260219,88487.0,88486.0,0.0258762]
[1745287702515,0.2250219,88487.0,88486.0,0.0258762]
[1745287703034,0.2250219,88487.0,88486.0,0.0268762]
[1745287710954,0.2260219,88487.0,88486.0,0.0268762]
[1745287712217,0.01130058,88491.0,88486.0,0.0268762]
[1745287712418,0.01130083,88489.0,88486.0,0.0268762]
[1745287712835,0.2260219,88487.0,88486.0,0.0268762]
[1745287713320,0.2260219,88487.0,88486.0,0.03293293]
[1745287714290,0.23831968,88489.0,88486.0,0.03293293]
[1745287714291,0.001,88489.0,88487.0,0.34]
[1745287714552,0.23831836,88489.0,88486.0,0.03293293]
[1745287714887,0.22602136,88488.0,88486.0,0.0258762]
[1745287715088,0.001,88487.0,88486.0,0.0258762]
[1745287715295,0.001,88487.0,88486.0,0.3658762]
[1745287715497,0.001,88487.0,88486.0,0.47963214]
[1745287715672,0.001,88487.0,88486.0,0.48768799]
[1745287715896,0.01129994,88496.0,88491.0,0.01130058]
[1745287716250,0.01129994,88496.0,88492.0,0.34]
[1745287716460,0.01129994,88496.0,88493.0,0.00705585]
[1745287716843,0.01129994,88496.0,88494.0,0.00705585]
[1745287717143,0.01129994,88496.0,88495.0,0.00705585]
[1745287719068,0.01229994,88496.0,88495.0,0.00705585]
[1745287721702,0.06039994,88496.0,88495.0,0.00705585]
[1745287722332,0.05939994,88496.0,88495.0,0.00705585]
[1745287722568,0.06139994,88496.0,88495.0,0.00705585]
[1745287722769,0.05939994,88496.0,88495.0,0.00705585]
[1745287723105,0.06139994,88496.0,88495.0,0.00705585]
[1745287724783,0.17515588,88496.0,88495.0,0.00705585]
[1745287725364,0.22600146,88495.0,88494.0,0.06]
[1745287725570,0.2260219,88487.0,88486.0,0.0258762]
[1745287725788,0.33977784,88487.0,88486.0,0.0258762]
[1745287726838,0.34077784,88487.0,88486.0,0.0258762]
[1745287729334,0.2270219,88487.0,88486.0,0.0258762]
[1745287731344,0.2260219,88487.0,88486.0,0.0258762]
[1745287732921,0.22603978,88480.0,88477.0,0.22019453]
[1745287733050,0.22605255,88475.0,88474.0,0.000846]
[1745287734090,0.22605255,88475.0,88474.0,0.02464915]
[1745287734574,0.22605255,88475.0,88474.0,0.02664915]
[1745287737741,0.22605255,88475.0,88474.0,0.03370667]
[1745287737944,0.22605255,88475.0,88474.0,0.03170667]
[1745287738345,0.22605255,88475.0,88474.0,0.03370667]
[1745287738542,0.01130237,88477.0,88474.0,0.03370667]
[1745287738744,0.22605245,88476.0,88474.0,0.03370667]
[1745287738945,0.22605245,88476.0,88475.0,0.00705752]
[1745287741293,0.22605245,88476.0,88475.0,0.00805752]
[1745287749151,0.22605245,88476.0,88475.0,0.00905752]
[1745287749866,0.22605245,88476.0,88475.0,0.00805752]
[1745287750059,0.22705245,88476.0,88475.0,0.00805752]
[1745287750384,0.22705245,88476.0,88475.0,0.00705752]
[1745287750987,0.22205245,88476.0,88475.0,0.00705752]
[1745287751406,0.22105245,88476.0,88475.0,0.00705752]
[1745287751834,0.22205245,88476.0,88475.0,0.00705752]
[1745287752940,0.33580839,88476.0,88475.0,0.00705752]
[1745287753162,0.38270839,88476.0,88475.0,0.00705752]
[1745287755966,0.38270839,88476.0,88474.0,0.02464915]
[1745287755967,0.38270839,88476.0,88474.0,1e-08]
[1745287756198,0.11375594,88475.0,88474.0,1e-08]
[1745287757234,0.16215594,88475.0,88474.0,1e-08]
[1745287757699,0.16215594,88475.0,88461.0,0.0004]
[1745287757700,0.22608577,88462.0,88461.0,1e-08]
[1745287757902,0.22608577,88462.0,88450.0,1e-08]
[1745287757903,0.22611389,88451.0,88450.0,1e-08]
[1745287758136,0.38676983,88451.0,88450.0,1e-08]
[1745287759039,0.27301389,88451.0,88450.0,0.00013716]
[1745287759921,0.38776983,88451.0,88450.0,0.00013716]
[1745287760112,0.22613946,88441.0,88439.0,0.0004228]
[1745287760339,0.11375594,88440.0,88439.0,0.00055975]
[1745287760546,0.11375594,88440.0,88439.0,0.03132798]
[1745287760749,0.11375594,88440.0,88439.0,0.00055975]
[1745287761360,0.11375594,88440.0,88439.0,0.00155975]
[1745287761572,0.11375594,88440.0,88439.0,0.03121194]
[1745287761787,0.11375594,88440.0,88439.0,0.00055975]
[1745287761985,0.16065594,88440.0,88439.0,0.00055975]
[1745287762389,0.16065594,88440.0,88439.0,0.03091665]
[1745287762604,0.16165594,88440.0,88439.0,0.00055975]
[1745287763051,0.16265594,88440.0,88439.0,0.03054901]
[1745287763454,0.11575594,88440.0,88439.0,0.03054901]
[1745287763901,0.002,88440.0,88439.0,0.03054901]
[1745287764109,0.002,88440.0,88439.0,0.37054901]
[1745287764344,0.001,88440.0,88439.0,0.37054901]
[1745287764583,0.22714201,88440.0,88439.0,0.37054901]
[1745287764801,0.22614201,88440.0,88439.0,0.37054901]
[1745287765022,0.22714201,88440.0,88439.0,0.03054901]
[1745287765252,0.001,88440.0,88439.0,0.03154901]
[1745287765476,0.01130671,88443.0,88439.0,0.03154901]
[1745287765702,0.01130518,88455.0,88446.0,0.01130633]
[1745287765907,0.22611859,88450.0,88446.0,0.34]
[1745287766110,0.01130595,88449.0,88446.0,0.34]
[1745287766367,0.01130569,88451.0,88448.0,0.34]
[1745287767216,0.01130582,88450.0,88446.0,0.35130633]
[1745287767445,0.01130569,88451.0,88446.0,0.22612456]
[1745287767844,0.01130633,88446.0,88442.0,0.4576359]
[1745287768453,0.01130633,88446.0,88443.0,0.00705975]
[1745287768657,0.01130633,88446.0,88444.0,0.00705975]
[1745287769330,0.01130633,88446.0,88445.0,0.00705975]
[1745287770596,0.23742482,88450.0,88446.0,0.34]
[1745287770821,0.01130595,88449.0,88446.0,0.34]
[1745287771072,0.22610309,88456.0,88446.0,0.34]
[1745287771073,0.01130428,88462.0,88458.0,0.0113048]
[1745287771296,0.23740028,88459.0,88453.0,0.34]
[1745287771555,0.01130492,88457.0,88453.0,0.34]
[1745287771774,0.01130505,88456.0,88454.0,0.00705975]
[1745287772178,0.22610366,88455.0,88454.0,0.00705975]
[1745287772390,0.23740748,88456.0,88453.0,0.34]
[1745287772624,0.01130607,88448.0,88446.0,0.34]
[1745287772821,0.01030607,88448.0,88447.0,0.00705916]
[1745287773104,0.01130531,88454.0,88447.0,0.00705916]
[1745287773321,0.22612156,88448.0,88447.0,0.00705916]
[1745287773536,0.23742229,88450.0,88447.0,0.00705916]
[1745287773761,0.23642229,88450.0,88447.0,0.00705916]
[1745287774076,0.23642229,88450.0,88448.0,0.00705916]
[1745287774723,0.23642229,88450.0,88449.0,0.00705916]
[1745287777278,0.23642229,88450.0,88449.0,0.00805916]
[1745287777921,0.23742229,88450.0,88449.0,0.00805916]
[1745287778340,0.23842229,88450.0,88449.0,0.00805916]
[1745287787050,0.23742229,88450.0,88449.0,0.00805916]
[1745287787251,0.23742229,88450.0,88449.0,0.00705916]
[1745287787893,0.23642229,88450.0,88449.0,0.00705916]
[1745287788160,0.23842229,88450.0,88449.0,0.00705916]
[1745287788362,0.27364201,88440.0,88439.0,0.03054901]
[1745287788562,0.38739795,88440.0,88439.0,0.03054901]
[1745287790200,0.38739795,88440.0,88439.0,0.00055975]
[1745287790414,0.38839795,88440.0,88439.0,0.00055975]
[1745287790613,0.38939795,88440.0,88439.0,0.00055975]
[1745287790852,0.38839795,88440.0,88439.0,0.00055975]
[1745287791245,0.39039795,88440.0,88439.0,0.03118397]
[1745287791453,0.34289795,88440.0,88439.0,0.00055975]
[1745287791873,0.22914201,88440.0,88439.0,0.00055975]
[1745287792617,0.22914201,88440.0,88439.0,0.03114766]
[1745287792844,0.22914201,88440.0,88439.0,0.00055975]
[1745287793224,0.22814201,88440.0,88439.0,0.00055975]
[1745287793458,0.22714201,88440.0,88439.0,0.00055975]
[1745287793868,0.22814201,88440.0,88439.0,0.00055975]
[1745287795906,0.22814201,88440.0,88439.0,0.03143511]
[1745287796111,0.22814201,88440.0,88439.0,0.00055975]
[1745287797531,0.22814201,88440.0,88439.0,0.03137617]
[1745287799128,0.22804513,88440.0,88439.0,0.03137617]
[1745287800782,0.22804513,88440.0,88439.0,0.03843716]
[1745287803810,0.27554513,88440.0,88439.0,0.03843716]
[1745287804018,0.38930107,88440.0,88438.0,1e-08]
[1745287804230,0.22616247,88432.0,88431.0,1e-08]
[1745287804437,0.22616247,88432.0,88431.0,0.0001032]
[1745287805719,0.33991841,88432.0,88431.0,0.03027295]
[1745287806131,0.33891841,88432.0,88431.0,0.03027295]
[1745287806554,0.22618805,88422.0,88421.0,0.33529895]
[1745287806827,0.22618805,88422.0,88421.0,0.33543609]
[1745287807038,0.22618805,88422.0,88421.0,0.00013714]
[1745287807671,0.22618805,88422.0,88421.0,0.02978954]
[1745287807856,0.22718805,88422.0,88421.0,0.00213714]
[1745287809021,0.22718805,88422.0,88421.0,0.00313714]
[1745287810180,0.22718805,88422.0,88421.0,0.03387941]
[1745287810391,0.22718805,88422.0,88421.0,0.00313714]
[1745287810685,0.22718805,88422.0,88421.0,0.03329234]
[1745287812962,0.43344399,88422.0,88421.0,0.00313714]
[1745287813232,0.43344399,88422.0,88421.0,1e-08]
[1745287813432,0.01131375,88388.0,88385.0,1e-08]
[1745287813599,0.0925,88386.0,88385.0,1e-08]
[1745287813775,0.20625594,88386.0,88385.0,0.03051532]
[1745287813983,0.22627762,88387.0,88385.0,1e-08]
[1745287814186,0.22527762,88387.0,88385.0,1e-08]
[1745287814427,0.22630066,88378.0,88377.0,1e-08]
[1745287814613,0.22630066,88378.0,88344.0,0.17374315]
[1745287814614,0.01131618,88369.0,88358.0,1e-08]
[1745287814818,0.23766141,88361.0,88358.0,0.03810445]
[1745287815111,0.22634932,88359.0,88358.0,1e-08]
[1745287815545,0.22634932,88359.0,88358.0,0.0372235]
[1745287815784,0.22634932,88359.0,88358.0,7.243e-05]
[1745287816004,0.34010526,88359.0,88358.0,7.243e-05]
[1745287816457,0.34010526,88359.0,88358.0,0.00107243]
[1745287817349,0.34110526,88359.0,88358.0,0.00107243]
[1745287817983,0.34010526,88359.0,88358.0,0.00107243]
[1745287818195,0.34110526,88359.0,88358.0,0.00107243]
[1745287818446,0.001,88359.0,88358.0,0.00107243]
[1745287818649,0.001,88359.0,88358.0,7.243e-05]
[1745287819028,0.002,88359.0,88358.0,7.243e-05]
[1745287819770,0.003,88359.0,88358.0,7.243e-05]
[1745287819980,0.11575594,88359.0,88358.0,7.243e-05]
[1745287820403,0.11775594,88359.0,88358.0,7.243e-05]
[1745287821061,0.16325594,88359.0,88358.0,7.243e-05]
[1745287821478,0.17325663,88359.0,88358.0,7.243e-05]
[1745287823298,0.22025663,88359.0,88358.0,7.243e-05]
[1745287823512,0.22025663,88359.0,88350.0,0.000423]
[1745287823513,0.22636982,88351.0,88350.0,0.000423]
[1745287823722,0.34012576,88351.0,88350.0,0.00049551]
[1745287824837,0.34112576,88351.0,88350.0,0.00049551]
[1745287825056,0.34112576,88351.0,88350.0,0.00149551]
[1745287826648,0.34112576,88351.0,88341.0,0.0004]
[1745287826649,0.22639288,88342.0,88341.0,0.0004]
[1745287826874,0.44858882,88342.0,88341.0,0.0004]
[1745287827319,0.44858882,88342.0,88322.0,0.0004231]
[1745287827320,0.22641082,88335.0,88334.0,1e-08]